fUSD/lending_fUSD_20260404
["ID","MTS","AMOUNT","RATE_DAILY","PERIOD"]
[419694082,1775302238259,-9316.12,0.00014,2]
[419694083,1775302238271,-300.0,0.00014041,2]
[419694084,1775302238283,-1600.0,0.00014082,2]
[419694085,1775302238295,-398.4179,0.000142,2]
[419694086,1775302238307,-5303.38,0.00014371,2]
[419694087,1775302238318,-500.0,0.00014371,2]
[419694088,1775302238329,-184.12346237,0.000144,2]
[419694089,1775302238340,-274.81594908,0.000144,2]
[419694090,1775302238351,-258.12173445,0.000144,2]
[419694091,1775302238362,-267.43073148,0.000144,2]
[419694093,1775302238373,-185.86725558,0.000144,2]
[419694094,1775302238384,-245.90319664,0.000144,2]
[419694095,1775302238396,-207.13368263,0.000144,2]
[419694096,1775302238407,-2500.0,0.00014422,2]
[419694097,1775302238419,-2500.0,0.00014422,2]
[419694098,1775302238431,-2500.0,0.00014422,2]
[419694099,1775302238442,-2500.0,0.00014422,2]
[419694100,1775302238453,-2500.0,0.00014422,2]
[419694101,1775302238464,-300.0,0.00014422,2]
[419694102,1775302238476,-300.0,0.00014422,2]
[419694103,1775302238487,-500.0,0.00014422,2]
[419694104,1775302238499,-500.0,0.00014422,2]
[419694105,1775302238510,-500.0,0.00014422,2]
[419694106,1775302238521,-300.0,0.00014422,2]
[419694107,1775302238532,-1600.0,0.00014499,2]
[419694108,1775302238543,-9999.99,0.00014504,2]
[419694109,1775302238554,-9408.56,0.00014504,2]
[419694110,1775302238565,-150.0,0.00014527,2]
[419694111,1775302238576,-200.0,0.0001464,2]
[419694112,1775302238587,-1744.52,0.00014665,2]
[419694113,1775302238599,-150.0,0.00014691,2]
[419694114,1775302238610,-3240.0,0.00014766,2]
[419694115,1775302238621,-174.61919141,0.00014836,2]
[419694116,1775302238632,-492.47,0.00014895,2]
[419694117,1775302238644,-200.0,0.000152,5]
[419694118,1775302238655,-8221.74,0.00015205,2]
[419694119,1775302238666,-400.0,0.000153,5]
[419694120,1775302238677,-181.08010149,0.00015384,2]
[419694121,1775302238688,-600.0,0.000154,5]
[419694122,1775302238699,-300.0,0.000154,2]
[419694123,1775302238711,-350.0,0.0001543,2]
[419694124,1775302238723,-1600.0,0.00015452,2]
[419694125,1775302238737,-800.0,0.000155,5]
[419694126,1775302238748,-2689.31,0.00015507,2]
[419694127,1775302238760,-1000.0,0.000156,2]
[419694128,1775302238771,-1000.0,0.000156,5]
[419694129,1775302238783,-1972.56197763,0.0001568,2]
[419694130,1775302238793,-200.0,0.000157,5]
[419694131,1775302238805,-154.6173872,0.00015744,2]
[419694132,1775302238816,-3765.18424339,0.00015746,2]
[419694133,1775302238827,-1000.0,0.00015755,2]
[419694134,1775302238838,-1000.0,0.00015768,2]
[419694135,1775302238849,-248.0,0.000158,2]
[419694136,1775302238860,-200.0,0.000158,5]
[419694137,1775302238871,-159.55143181,0.000158,2]
[419694138,1775302238883,-2535.519,0.0001581,2]
[419694139,1775302238894,-185.876,0.0001581,2]
[419694140,1775302238905,-200.0,0.00015872,2]
[419694141,1775302238916,-1000.0,0.00015877,2]
[419694142,1775302238927,-2000.0,0.0001589,2]
[419694143,1775302238938,-2689.31,0.00015895,2]
[419694144,1775302238950,-500.0,0.00015895,2]
[419694145,1775302238961,-604.10619477,0.00015899,2]
[419694146,1775302238972,-604.10619474,0.00015899,2]
[419694147,1775302238983,-604.10619474,0.00015899,2]
[419694148,1775302238995,-604.10619474,0.00015899,2]
[419694149,1775302239007,-604.10619474,0.00015899,2]
[419694150,1775302239018,-604.10619474,0.000159,2]
[419694151,1775302239030,-604.10619474,0.000159,2]
[419694152,1775302239042,-2500.0,0.000159,2]
[419694153,1775302239054,-604.10619474,0.000159,2]
[419694154,1775302239065,-604.10619474,0.000159,2]
[419694155,1775302239076,-2481.87530334,0.000159,2]
[419694156,1775302239088,-5000.0,0.000159,2]
[419694157,1775302239609,-150.0,0.000159,2]
[419694158,1775302239630,-604.10619474,0.000159,2]
[419694159,1775302239641,-57658.68660929,0.000159,2]
[419694160,1775302239651,-151.06142023,0.000159,2]
[419694161,1775302239660,-5667.46241087,0.000159,2]
[419694162,1775302239669,-200.0,0.000159,5]
[419694163,1775302239678,-151.12106257,0.000159,2]
[419694164,1775302239687,-663.62587502,0.00015901,2]
[419694165,1775302239696,-350.0,0.00015905,2]
[419694166,1775302239705,-187.78006525,0.00015932,2]
[419694167,1775302239715,-1000.0,0.00015936,2]
[419694168,1775302239724,-500.0,0.00015973,2]
[419694169,1775302239734,-300.0,0.00015975,2]
[419694170,1775302239744,-1000.0,0.0001598,2]
[419694171,1775302239754,-302.32815589,0.00015984,2]
[419694172,1775302239764,-253.41004892,0.00015984,2]
[419694173,1775302239775,-204.33020399,0.00015984,2]
[419694174,1775302239784,-151.0,0.00015997,2]
[419694175,1775302239794,-865.85238621,0.00015997,2]
[419694176,1775302239803,-865.85238621,0.00015997,2]
[419694177,1775302239813,-865.85238621,0.00015997,2]
[419694178,1775302239822,-865.85238621,0.00015997,2]
[419694179,1775302239833,-865.85238621,0.00015997,2]
[419694180,1775302239844,-865.85238621,0.00015997,2]
[419694181,1775302239855,-865.85238621,0.00015997,2]
[419694182,1775302239864,-865.85238621,0.00015997,2]
[419694183,1775302239874,-865.85238621,0.00015997,2]
[419694184,1775302239883,-865.85238621,0.00015997,2]
[419694185,1775302239893,-865.85238621,0.00015997,2]
[419694186,1775302239902,-865.85238621,0.00015997,2]
[419694187,1775302239911,-865.85238621,0.00015997,2]
[419694188,1775302239922,-865.85238621,0.00015997,2]
[419694189,1775302239932,-865.85238621,0.00015997,2]
[419694190,1775302239943,-865.85238621,0.00015997,2]
[419694191,1775302239953,-865.85238621,0.00015997,2]
[419694192,1775302239963,-865.85238621,0.00015997,2]
[419694193,1775302239973,-865.85238621,0.00015997,2]
[419694194,1775302239984,-865.85238621,0.00015997,2]
[419694195,1775302239995,-865.85238621,0.00015997,2]
[419694196,1775302240006,-865.85238621,0.00015997,2]
[419694197,1775302240016,-865.85238621,0.00015997,2]
[419694198,1775302240025,-865.85238621,0.00015997,2]
[419694199,1775302240035,-865.85238621,0.00015997,2]
[419694200,1775302240044,-865.85238621,0.00015997,2]
[419694202,1775302240054,-865.85238621,0.00015997,2]
[419694203,1775302240063,-865.85238621,0.00015997,2]
[419694204,1775302240072,-865.85238621,0.00015997,2]
[419694205,1775302240083,-865.85238621,0.00015997,2]
[419694206,1775302240092,-865.85238621,0.00015997,2]
[419694207,1775302240102,-865.85238621,0.00015997,2]
[419694208,1775302240111,-865.85238621,0.00015997,2]
[419694209,1775302240120,-865.85238621,0.00015997,2]
[419694210,1775302240130,-865.85238621,0.00015997,2]
[419694211,1775302240139,-648.25326113,0.00015997,2]
[419694212,1775302240194,-217.59912508,0.00015997,2]
[419694213,1775302240204,-110.34563008,0.00015997,2]
[419694214,1775302240827,-700.0,0.00014082,2]
[419694215,1775302240836,-755.50675613,0.00015997,2]
[419694216,1775302240846,-865.85238621,0.00015997,2]
[419694217,1775302240855,-865.85238621,0.00015997,2]
[419694218,1775302240866,-865.85238621,0.00015997,2]
[419694219,1775302240875,-865.85238621,0.00015997,2]
[419694220,1775302240884,-865.85238621,0.00015997,2]
[419694221,1775302240894,-865.85238621,0.00015997,2]
[419694222,1775302240903,-865.85238621,0.00015997,2]
[419694223,1775302240912,-865.85238621,0.00015997,2]
[419694224,1775302240922,-865.85238621,0.00015997,2]
[419694225,1775302240931,-865.85238621,0.00015997,2]
[419694226,1775302240940,-865.85238621,0.00015997,2]
[419694227,1775302240950,-865.85238621,0.00015997,2]
[419694228,1775302240959,-865.85238621,0.00015997,2]
[419694229,1775302240970,-865.85238621,0.00015997,2]
[419694230,1775302240979,-865.85238621,0.00015997,2]
[419694231,1775302240988,-184.84985572,0.00015998,2]
[419694232,1775302240998,-1297.89044282,0.00015999,2]
[419694233,1775302241007,-666.0,0.00015999,2]
[419694234,1775302241016,-500.0,0.00015999,2]
[419694235,1775302241026,-500.0,0.00015999,2]
[419694236,1775302241035,-500.0,0.00015999,2]
[419694237,1775302241044,-500.0,0.00015999,2]
[419694238,1775302241053,-500.0,0.00015999,2]
[419694239,1775302241063,-500.0,0.00015999,2]
[419694240,1775302241072,-500.0,0.00015999,2]
[419694241,1775302241082,-500.0,0.00015999,2]
[419694242,1775302241091,-500.0,0.00015999,2]
[419694243,1775302241100,-500.0,0.00015999,2]
[419694244,1775302241109,-500.0,0.00015999,2]
[419694245,1775302241119,-500.0,0.00015999,2]
[419694246,1775302241128,-500.0,0.00015999,2]
[419694247,1775302241138,-500.0,0.00015999,2]
[419694248,1775302241147,-500.0,0.00015999,2]
[419694249,1775302241157,-500.0,0.00015999,2]
[419694250,1775302241166,-500.0,0.00015999,2]
[419694251,1775302241176,-500.0,0.00015999,2]
[419694252,1775302241185,-500.0,0.00015999,2]
[419694253,1775302241194,-500.0,0.00015999,2]
[419694254,1775302241203,-500.0,0.00015999,2]
[419694255,1775302241213,-500.0,0.00015999,2]
[419694256,1775302241222,-500.0,0.00015999,2]
[419694257,1775302241232,-500.0,0.00015999,2]
[419694258,1775302241242,-500.0,0.00015999,2]
[419694259,1775302241251,-500.0,0.00015999,2]
[419694260,1775302241261,-500.0,0.00015999,2]
[419694261,1775302241271,-500.0,0.00015999,2]
[419694262,1775302241282,-500.0,0.00015999,2]
[419694263,1775302241291,-500.0,0.00015999,2]
[419694264,1775302241301,-500.0,0.00015999,2]
[419694265,1775302241310,-500.0,0.00015999,2]
[419694266,1775302241320,-500.0,0.00015999,2]
[419694267,1775302241330,-500.0,0.00015999,2]
[419694268,1775302241341,-500.0,0.00015999,2]
[419694269,1775302241352,-500.0,0.00015999,2]
[419694270,1775302241363,-500.0,0.00015999,2]
[419694271,1775302241372,-500.0,0.00015999,2]
[419694272,1775302241381,-500.0,0.00015999,2]
[419694273,1775302241391,-500.0,0.00015999,2]
[419694274,1775302241402,-500.0,0.00015999,2]
[419694275,1775302241412,-500.0,0.00015999,2]
[419694276,1775302241424,-500.0,0.00015999,2]
[419694277,1775302241433,-500.0,0.00015999,2]
[419694278,1775302241442,-500.0,0.00015999,2]
[419694279,1775302241451,-520.24272845,0.00015999,2]
[419694280,1775302241460,-500.0,0.00015999,2]
[419694281,1775302241470,-500.0,0.00015999,2]
[419694282,1775302241481,-500.0,0.00015999,2]
[419694283,1775302241492,-500.0,0.00015999,2]
[419694284,1775302241502,-500.0,0.00015999,2]
[419694285,1775302241512,-500.0,0.00015999,2]
[419694286,1775302241522,-186.15865542,0.00015999,2]
[419694287,1775302241532,-239.0441826,0.00015999,2]
[419694288,1775302241543,-500.0,0.00015999,2]
[419694289,1775302241553,-500.0,0.00015999,2]
[419694290,1775302241563,-500.0,0.00015999,2]
[419694291,1775302241572,-420.56862109,0.00015999,2]
[419694292,1775302241583,-500.0,0.00015999,2]
[419694293,1775302241594,-500.0,0.00015999,2]
[419694294,1775302241604,-500.0,0.00015999,2]
[419694295,1775302241614,-500.0,0.00015999,2]
[419694296,1775302241624,-500.0,0.00015999,2]
[419694297,1775302241633,-500.0,0.00015999,2]
[419694298,1775302241642,-500.0,0.00015999,2]
[419694299,1775302241652,-169.85671754,0.00015999,2]
[419694300,1775302241662,-500.0,0.00015999,2]
[419694301,1775302241671,-500.0,0.00015999,2]
[419694302,1775302241680,-193.93058829,0.00015999,2]
[419694303,1775302241690,-232.50492352,0.00015999,2]
[419694304,1775302241699,-267.28135212,0.00015999,2]
[419694305,1775302241708,-4286.0,0.00016,5]
[419694306,1775302241718,-3433.0,0.00016,5]
[419694307,1775302241727,-1620840.37875792,0.00016,2]
[419694342,1775302246124,-700.0,0.00015452,2]
[419694343,1775302246134,-1315.04131842,0.0001568,2]
[419694344,1775302246145,-2500.0,0.000159,2]
[419694345,1775302246156,-36544.49650437,0.00016,2]
[419694347,1775302748582,1945.489078,7.945e-05,2]
[419694353,1775303432094,-500.0,0.00012201,2]
[419694354,1775303432104,-383.81132686,0.00012201,2]
[419694355,1775303432113,-331.0,0.00012201,2]
[419694356,1775303432123,-874.04328479,0.00012288,2]
[419694357,1775303432132,-2252.48,0.00012301,2]
[419694358,1775303432141,-455.244502,0.00012935,2]
[419694359,1775303432151,-250.0,0.00013,2]
[419694360,1775303432160,-300.0,0.0001311,2]
[419694361,1775303432169,-503.0,0.00013111,2]
[419694362,1775303432179,-11219.45548607,0.00013111,2]
[419694363,1775303432188,-250.0,0.00013421,2]
[419694364,1775303432198,-1950.0,0.00013421,2]
[419694365,1775303432207,-193.0,0.00013421,2]
[419694366,1775303432216,-250.0,0.00013421,2]
[419694367,1775303432226,-166.66,0.00013699,2]
[419694368,1775303432236,-166.66,0.00013983,2]
[419694369,1775303432245,-290.0,0.00014081,2]
[419694370,1775303432254,-1500.0,0.00014082,2]
[419694371,1775303432263,-166.66,0.00014268,2]
[419694372,1775303432272,-420.0,0.00014376,2]
[419694373,1775303432282,-160.4,0.00014377,2]
[419694374,1775303432291,-150.0,0.000144,2]
[419694375,1775303432300,-150.0,0.000144,2]
[419694376,1775303432310,-150.0,0.000144,2]
[419694377,1775303432320,-150.0,0.000144,2]
[419694378,1775303432330,-150.0,0.000144,2]
[419694379,1775303432340,-150.0,0.000144,2]
[419694381,1775303432349,-150.0,0.000144,2]
[419694383,1775303432359,-150.0,0.000144,2]
[419694385,1775303432368,-150.0,0.000144,2]
[419694387,1775303432378,-22980.4537,0.00014465,2]
[419694389,1775303432387,-500.0,0.00014466,2]
[419694391,1775303432397,-150.0,0.00014533,2]
[419694393,1775303432406,-461.39,0.00014534,2]
[419694395,1775303432415,-4327.59937837,0.00014534,2]
[419694397,1775303432427,-5672.39062163,0.00014534,2]
[419694399,1775303432436,-8712.31,0.00014534,2]
[419694401,1775303432445,-5445.29937841,0.00014534,2]
[419694403,1775303432471,-3618.11972123,0.00014534,2]
[419694404,1775303432482,-544.144535,0.00014534,2]
[419694406,1775303438124,-392.42636536,0.00014534,2]
[419694407,1775303438135,-1032.29,0.00014534,2]
[419694408,1775303438145,-4483.6753393,0.00014534,2]
[419694409,1775303438158,-1086.4395005,0.00014534,2]
[419694410,1775303438170,-750.97674804,0.00014534,2]
[419694411,1775303438186,-540.01220046,0.00014534,2]
[419694412,1775303438293,-8361.1262117,0.00014534,2]
[419694413,1775303438303,-150.99,0.00014534,2]
[419694414,1775303438312,-166.66,0.00014553,2]
[419694415,1775303438323,-1500.0,0.00014589,2]
[419694416,1775303438333,-150.0,0.00014712,2]
[419694417,1775303438344,-2000.0,0.00014729,2]
[419694418,1775303438354,-1092.48,0.00014783,2]
[419694419,1775303438363,-150.0,0.000148,2]
[419694420,1775303438373,-166.66,0.00014838,2]
[419694421,1775303438383,-150.0,0.00014933,2]
[419694422,1775303438392,-532.14,0.00014933,2]
[419694423,1775303438402,-200.0,0.00014966,2]
[419694424,1775303438412,-300.0,0.00015,2]
[419694425,1775303438422,-1159.0,0.00015,15]
[419694426,1775303438432,-10000.0,0.00015,15]
[419694427,1775303438442,-8266.0,0.00015,15]
[419694428,1775303438452,-166.66,0.00015071,2]
[419694429,1775303438462,-166.66,0.00015122,2]
[419694430,1775303438472,-174.61919141,0.00015196,2]
[419694431,1775303438482,-150.0,0.000152,2]
[419694432,1775303438492,-150.0,0.000152,2]
[419694433,1775303438501,-150.0,0.000152,2]
[419694434,1775303438511,-350.0,0.00015232,2]
[419694435,1775303438522,-1500.0,0.00015452,2]
[419694436,1775303438532,-150.0,0.00015467,2]
[419694437,1775303438542,-168.0,0.00015474,2]
[419694439,1775303438553,-1409.58112111,0.00015553,2]
[419694441,1775303438564,-583.0,0.00015589,2]
[419694442,1775303438574,-1409.58112107,0.00015592,2]
[419694443,1775303438585,-150.0,0.000156,2]
[419694444,1775303438595,-1409.58112107,0.0001563,2]
[419694445,1775303438605,-1046.0,0.00015653,2]
[419694446,1775303438615,-622.0,0.00015653,2]
[419694447,1775303438626,-1349.934,0.00015653,2]
[419694448,1775303438636,-3521.0,0.00015653,2]
[419694449,1775303438646,-1263.0,0.00015653,2]
[419694450,1775303438656,-150.475,0.00015653,2]
[419694451,1775303438666,-1221.85,0.00015653,2]
[419694452,1775303438675,-925.0,0.00015653,2]
[419694453,1775303438685,-2941.934,0.00015653,2]
[419694454,1775303438694,-2470.0,0.00015653,2]
[419694455,1775303438704,-1409.58112107,0.00015669,2]
[419694456,1775303438713,-532.14,0.0001568,2]
[419694457,1775303438724,-876.69421228,0.0001568,2]
[419694458,1775303438734,-1409.58112107,0.00015707,2]
[419694459,1775303438744,-1000.0,0.00015726,2]
[419694460,1775303438753,-168.0,0.00015743,2]
[419694461,1775303438763,-181.08010149,0.00015744,2]
[419694462,1775303438772,-1409.58112107,0.00015746,2]
[419694463,1775303438783,-1000.0,0.00015756,2]
[419694464,1775303438792,-309.10787351,0.00015782,2]
[419694465,1775303438818,-690.89212649,0.00015782,2]
[419694466,1775303438827,-1409.58112107,0.00015784,2]
[419694467,1775303438837,-1000.0,0.00015791,2]
[419694468,1775303438847,-2500.0,0.00015796,2]
[419694469,1775303438856,-1708.62675244,0.000158,2]
[419694470,1775303438883,-291.37324756,0.000158,2]
[419694471,1775303438892,-160.4,0.00015814,2]
[419694472,1775303438904,-216.9362169,0.00015823,2]
[419694476,1775303441109,-415.0,0.00015653,2]
[419694477,1775303441120,-1192.64490417,0.00015823,2]
[419694478,1775303441132,-1000.0,0.0001584,2]
[419694479,1775303441143,-1000.0,0.0001584,2]
[419694480,1775303441154,-1000.0,0.0001584,2]
[419694481,1775303441163,-2662.295,0.00015846,2]
[419694482,1775303441173,-185.876,0.00015846,2]
[419694483,1775303441183,-1409.58112107,0.00015861,2]
[419694484,1775303441193,-200.0,0.00015871,2]
[419694485,1775303441203,-200.0,0.00015872,2]
[419694486,1775303441212,-1000.0,0.00015894,2]
[419694487,1775303441222,-184.84985572,0.00015895,2]
[419694488,1775303441232,-500.0,0.00015896,2]
[419694489,1775303441243,-101176.178,0.00015897,2]
[419694490,1775303441254,-1000.0,0.000159,2]
[419694491,1775303441264,-10000.0,0.000159,2]
[419694492,1775303441274,-169.20655523,0.000159,3]
[419694493,1775303441284,-25559.75281378,0.000159,2]
[419694494,1775303441294,-206.82294195,0.000159,2]
[419694495,1775303441304,-5000.0,0.000159,2]
[419694496,1775303441315,-1409.58112107,0.000159,2]
[419694497,1775303441325,-214.0,0.00015926,2]
[419694498,1775303441336,-161.57925816,0.00015942,2]
[419694499,1775303441345,-461.35735938,0.00015973,2]
[419694500,1775303441355,-1000.0,0.00015983,2]
[419694501,1775303441366,-285.95918194,0.00015984,2]
[419694502,1775303441376,-460.27739685,0.00015984,2]
[419694503,1775303441387,-204.12307404,0.00015984,2]
[419694504,1775303441398,-251.58185399,0.00015984,2]
[419694505,1775303441408,-189.27023912,0.00015984,2]
[419694506,1775303441418,-178.82090119,0.00015984,2]
[419694507,1775303441428,-322.90965816,0.00015984,2]
[419694508,1775303441438,-158.07317136,0.00015984,2]
[419694509,1775303441449,-241.54534116,0.00015984,2]
[419694510,1775303441459,-241.54534116,0.00015984,2]
[419694511,1775303441469,-471.79722539,0.0001599,2]
[419694512,1775303441480,-471.79722539,0.0001599,2]
[419694513,1775303441491,-471.79722539,0.0001599,2]
[419694514,1775303441503,-152.0,0.00015993,2]
[419694515,1775303441515,-152.0,0.00015993,2]
[419694516,1775303441524,-152.0306331,0.00015993,2]
[419694517,1775303441534,-500.0,0.00015996,2]
[419694518,1775303441544,-500.0,0.00015996,2]
[419694519,1775303441553,-151.0,0.00015997,2]
[419694520,1775303441565,-500.0,0.00015998,2]
[419694521,1775303441575,-500.0,0.00015998,2]
[419694522,1775303441585,-1297.89044282,0.00015999,2]
[419694523,1775303441594,-666.0,0.00015999,2]
[419694524,1775303441604,-666.0,0.00015999,2]
[419694525,1775303441614,-1820.5830906,0.00015999,2]
[419694526,1775303441624,-14914.57143,0.00015999,2]
[419694527,1775303441633,-155.0,0.00015999,2]
[419694528,1775303441643,-38682.568424,0.00015999,2]
[419694529,1775303441653,-5376.3389575,0.00015999,2]
[419694530,1775303441663,-500.0,0.00015999,2]
[419694531,1775303441672,-500.0,0.00015999,2]
[419694532,1775303441682,-500.0,0.00015999,2]
[419694533,1775303441691,-500.0,0.00015999,2]
[419694534,1775303441701,-500.0,0.00015999,2]
[419694535,1775303441711,-500.0,0.00015999,2]
[419694536,1775303441720,-500.0,0.00015999,2]
[419694537,1775303441730,-500.0,0.00015999,2]
[419694538,1775303441739,-500.0,0.00015999,2]
[419694539,1775303441748,-500.0,0.00015999,2]
[419694540,1775303441758,-500.0,0.00015999,2]
[419694541,1775303441768,-500.0,0.00015999,2]
[419694542,1775303441778,-500.0,0.00015999,2]
[419694543,1775303441787,-500.0,0.00015999,2]
[419694544,1775303441796,-500.0,0.00015999,2]
[419694545,1775303441806,-500.0,0.00015999,2]
[419694546,1775303441815,-500.0,0.00015999,2]
[419694547,1775303441825,-500.0,0.00015999,2]
[419694548,1775303441834,-500.0,0.00015999,2]
[419694549,1775303441844,-500.0,0.00015999,2]
[419694550,1775303441854,-500.0,0.00015999,2]
[419694551,1775303441864,-500.0,0.00015999,2]
[419694552,1775303441873,-500.0,0.00015999,2]
[419694553,1775303441883,-500.0,0.00015999,2]
[419694554,1775303441893,-500.0,0.00015999,2]
[419694555,1775303441902,-500.0,0.00015999,2]
[419694556,1775303441912,-500.0,0.00015999,2]
[419694557,1775303441921,-500.0,0.00015999,2]
[419694558,1775303441931,-500.0,0.00015999,2]
[419694559,1775303441941,-500.0,0.00015999,2]
[419694560,1775303441951,-500.0,0.00015999,2]
[419694561,1775303441961,-500.0,0.00015999,2]
[419694562,1775303441971,-500.0,0.00015999,2]
[419694563,1775303441980,-500.0,0.00015999,2]
[419694564,1775303441990,-500.0,0.00015999,2]
[419694565,1775303442000,-500.0,0.00015999,2]
[419694566,1775303442011,-500.0,0.00015999,2]
[419694567,1775303442021,-500.0,0.00015999,2]
[419694568,1775303442031,-500.0,0.00015999,2]
[419694569,1775303442041,-500.0,0.00015999,2]
[419694570,1775303442050,-500.0,0.00015999,2]
[419694571,1775303442060,-500.0,0.00015999,2]
[419694572,1775303442071,-500.0,0.00015999,2]
[419694573,1775303442081,-500.0,0.00015999,2]
[419694574,1775303442091,-520.24272845,0.00015999,2]
[419694575,1775303442103,-500.0,0.00015999,2]
[419694576,1775303442115,-500.0,0.00015999,2]
[419694577,1775303442126,-500.0,0.00015999,2]
[419694578,1775303442138,-500.0,0.00015999,2]
[419694579,1775303442149,-500.0,0.00015999,2]
[419694580,1775303442159,-186.15865542,0.00015999,2]
[419694581,1775303442170,-4288.0,0.00016,5]
[419694582,1775303442179,-3434.0,0.00016,5]
[419694583,1775303442189,-150.0,0.00016,2]
[419694584,1775303442199,-150.0,0.00016,2]
[419694585,1775303442210,-150.0,0.00016,2]
[419694586,1775303442219,-153.19744014,0.00016,2]
[419694587,1775303442230,-234.30356262,0.00016,2]
[419694588,1775303442241,-150.0,0.00016,2]
[419694589,1775303442251,-150.0,0.00016,2]
[419694590,1775303442261,-150.0,0.00016,2]
[419694591,1775303442271,-1514660.82879093,0.00016,2]
[419694592,1775303442379,-584.46280819,0.0001568,2]
[419694593,1775303442389,-3317.48084204,0.00016,2]
[419694594,1775303442401,-21562.43490903,0.00016,2]
[419694610,1775303443214,-751.6439873,0.00016,2]
[419694611,1775303443423,-0.00303164,0.00016,2]
[419694614,1775303446729,-389.64187213,0.0001568,2]
[419694615,1775303446743,-1489.17212541,0.000158,2]
[419694616,1775303446777,-510.82787459,0.000158,2]
[419694617,1775303446789,-1514.87212538,0.000159,2]
[419694618,1775303446962,-485.12787462,0.000159,2]
[419694619,1775303446973,-20790.39570366,0.00016,2]
[419694620,1775303446996,-1826.80243167,0.00016,2]
[419694621,1775303447011,-754.05398418,0.00016,2]
[419694642,1775304632900,-760.749854,0.00012466,2]
[419694643,1775304632910,-336.0,0.00012466,2]
[419694644,1775304632919,-600.0,0.00012529,2]
[419694645,1775304632928,-200.04654665,0.00012602,2]
[419694646,1775304632938,-250.0,0.00012623,2]
[419694647,1775304632948,-1747.39064861,0.00012623,2]
[419694648,1775304632957,-1200.0,0.00012653,2]
[419694649,1775304632967,-5000.0,0.00012654,2]
[419694650,1775304632976,-200.0,0.00012676,2]
[419694651,1775304632986,-250.0,0.00012696,2]
[419694652,1775304632995,-629.57948764,0.00012716,2]
[419694653,1775304633005,-300.0,0.00012741,2]
[419694654,1775304633015,-300.0,0.00012741,2]
[419694655,1775304633025,-300.0,0.00012741,2]
[419694656,1775304633034,-1200.0,0.00012742,2]
[419694657,1775304633043,-300.0,0.00012742,2]
[419694658,1775304633053,-300.0,0.00012742,2]
[419694659,1775304633062,-3521.19720196,0.00012743,2]
[419694660,1775304633071,-25687.76,0.00012777,2]
[419694661,1775304633081,-150.0,0.00012824,2]
[419694662,1775304633090,-1755.52,0.00012841,2]
[419694663,1775304633100,-250.0,0.00013,2]
[419694664,1775304633110,-2533.68,0.00013031,2]
[419694665,1775304633119,-150.0,0.00013109,2]
[419694666,1775304633128,-4999.99,0.0001311,2]
[419694667,1775304633138,-150.99,0.0001311,2]
[419694668,1775304633148,-999.99,0.0001311,2]
[419694669,1775304633158,-299.99,0.0001311,2]
[419694670,1775304633168,-9277.79,0.0001311,2]
[419694671,1775304633179,-5580.07,0.0001311,2]
[419694672,1775304633189,-502.0,0.00013111,2]
[419694673,1775304633198,-495.24093173,0.00013154,2]
[419694674,1775304633207,-320.0,0.00013208,2]
[419694675,1775304633217,-629.57948763,0.00013337,2]
[419694676,1775304633228,-600.0,0.00013712,2]
[419694677,1775304633239,-3240.0,0.00013718,2]
[419694678,1775304633249,-10603.29,0.00013763,2]